Cogmind - Beta 13 @@@ ROGUE MODE // 2024.04.14 @ 06:10:42 Player: scumgirle Result: Self-destructed Performance ------------- Evolutions (2) 1000 Regions Visited (4) 800 Robots Destroyed (6) 30 Value Destroyed (134) 134 Prototype IDs (0) 0 Alien Tech Used (0) 0 Bonus (200) 200 TOTAL SCORE: 2164 Bonus ------- Pacifist 200 Cogmind --------- Core Integrity 522/550 Matter 241/300 Energy 90/125 System Corruption 0% Temperature Warning (369) Movement Rolling (80) Location -8/Materials Parts ------- > --- POWER (2) -------- Light Ion Engine > --- PROPULSION (2) --- Wheel Wheel > --- UTILITY (4) ------ Small Storage Unit Terrain Scanner ECM Suite Propulsion Shielding > --- WEAPON (3) ------- Medium Laser Small Laser Particle Gun > --- INVENTORY (8) ---- Light Ion Engine Aluminum Leg Wheel Terrain Scanner Decoy Drone Bay Small Laser Peak State ------------ > --- POWER ------------ Ion Engine Light Ion Engine > --- PROPULSION ------- Wheel Wheel > --- UTILITY ---------- Small Storage Unit Terrain Scanner ECM Suite Propulsion Shielding > --- WEAPON ----------- Medium Laser Particle Gun > --- INVENTORY -------- Light Ion Engine Aluminum Leg Compact Wheel Terrain Scanner Decoy Drone Bay Small Laser Small Laser [Rating: 13] Favorites ----------- Power Ion Engine Engine Ion Engine Propulsion Wheel Wheel Wheel Utility Small Storage Unit Device ECM Suite Storage Small Storage Unit Protection Propulsion Shielding Weapon Medium Laser Energy Gun Medium Laser Ballistic Gun Assault Rifle Build | -11 -10 -9 -9 -8 ------- Run | Yrd Mat Mat Min Mat Slots Evolved 4 | . . 2 . 2 Power 1 | . . 1 . . Propulsion . | . . . . . Utility 2 | . . 1 . 1 Weapon 1 | . . . . 1 Parts Attached 12 | 6 1 2 1 2 Power 2 | 1 . . 1 . Engine 2 | 1 . . 1 . Core . | . . . . . Reactor . | . . . . . Propulsion 2 | 2 . . . . Treads . | . . . . . Leg . | . . . . . Wheel 2 | 2 . . . . Hover . | . . . . . Flight . | . . . . . Utility 4 | 1 1 1 . 1 Device 2 | . . 1 . 1 Storage 1 | 1 . . . . Processor . | . . . . . Hackware . | . . . . . Protection 1 | . 1 . . . Artifact . | . . . . . Weapon 4 | 2 . 1 . 1 Energy Gun 3 | 1 . 1 . 1 Energy Cannon . | . . . . . Ballistic Gun 1 | 1 . . . . Ballistic Cannon . | . . . . . Launcher . | . . . . . Special Weapon . | . . . . . Impact Weapon . | . . . . . Slashing Weapon . | . . . . . Piercing Weapon . | . . . . . Special Melee Weapon . | . . . . . Unidentified Prototypes . | . . . . . Parts Lost 1 | . . . . 1 Power 1 | . . . . 1 Propulsion . | . . . . . Utility . | . . . . . Weapon . | . . . . . Highest Loss Streak 1 | . . . . 1 To Critical Strikes . | . . . . . Average Slot Usage (%) 95 | . 97 88 97 92 Engine 16 | . 14 11 19 16 Wheel 22 | . 28 22 22 18 Device 9 | . . 11 11 18 Storage 11 | . 14 11 11 9 Protection 10 | . 11 11 11 9 Energy Gun 18 | . 14 15 22 21 Ballistic Gun 4 | . 14 6 . . Naked Turns . | . . . . . Heaviest Build 22 | 14 15 18 21 22 Greatest Support 20 | 20 20 20 20 20 Greatest Overweight (x) 1 | 1 . . 1 1 Average Overweight (x) . | . . . . . Largest Inventory Capacity 8 | 8 8 8 8 8 Average Capacity 7 | 6 8 8 8 8 Most Carried 8 | 5 8 8 8 8 Average Carried 6 | 3 6 7 7 7 Final Capacity 8 | 8 8 8 8 8 Final Carried 8 | 4 8 8 8 7 Class Distribution -------------------- 90% | Mutant 9% | Skirmisher Dominant Class ---------------- Mutant | -10/Materials Mutant | -9/Materials Mutant | -9/Mines Mutant | -8/Materials Resources | -11 -10 -9 -9 -8 ----------- Run | Yrd Mat Mat Min Mat Matter Collected 367 | 260 . . 40 67 Remotely . | . . . . . Salvage Created 153 | . . . 56 97 Parts 5 | . . . 4 1 Haulers Intercepted . | . . . . . Recyclers Shooed . | . . . . . Parts Field Recycled . | . . . . . Retrieved Matter . | . . . . . Parts Self-Destructed . | . . . . . Prevented . | . . . . . Kills | -11 -10 -9 -9 -8 ------- Run | Yrd Mat Mat Min Mat Combat Hostiles Destroyed 6 | . . . 4 2 Guns 4 | . . . 4 . Classes Destroyed 2 | . . . 1 1 Swarmer 4 | . . . 4 . Grunt 2 | . . . . 2 Best Kill Streak 4 | . . . 4 2 Combat Bots Only 4 | . . . 4 2 Max Kills in Single Turn 1 | . . . 1 1 Gunslinging . | . . . . . Exploded . | . . . . . Melee . | . . . . . Uniques/NPCs Destroyed . | . . . . . Combat | -11 -10 -9 -9 -8 -------- Run | Yrd Mat Mat Min Mat Hostile Shots Fired 35 | . . . 21 14 Missed 6 | . . . 4 2 Damage Taken 362 | . . . 136 226 Core 76 | . . . 48 28 Absorbed by Shields . | . . . . . Redirected to Shielding 18 | . . . 7 11 Core Remaining (%) 96 | 100 100 . 88 . Volleys Fired 19 | . . . 9 10 Largest 3 | . . . 2 3 Hottest 155 | . . . 115 155 Shots Fired 45 | . . . 18 27 Gun 45 | . . . 18 27 Cannon . | . . . . . Launcher . | . . . . . Special . | . . . . . Kinetic . | . . . . . Thermal 45 | . . . 18 27 Explosive . | . . . . . Electromagnetic . | . . . . . Robot Hit Streak 12 | . . . 2 12 Robot Miss Streak 3 | . . . 3 1 Penetration Max . | . . . . . Secondary Targets . | . . . . . Shots Hit Robots 29 | . . . 7 22 Core Hits 7 | . . . 4 3 Critical Kills . | . . . . . Critical Parts Destroyed . | . . . . . Critical Strikes 1 | . . . . 1 Burn 1 | . . . . 1 Melee Attacks . | . . . . . Impact . | . . . . . Slashing . | . . . . . Piercing . | . . . . . Sneak Attacks . | . . . . . Combat Hostiles . | . . . . . Follow-up Attacks . | . . . . . Damage Inflicted 412 | . . . 128 284 Guns 412 | . . . 128 284 Cannons . | . . . . . Explosions . | . . . . . Melee . | . . . . . Ramming . | . . . . . Kinetic . | . . . . . Thermal 412 | . . . 128 284 Explosive . | . . . . . Electromagnetic . | . . . . . Impact . | . . . . . Slashing . | . . . . . Piercing . | . . . . . Highest Corruption . | . . . . . Average Corruption . | . . . . . Corruption Purged . | . . . . . Corruption Blocked . | . . . . . Overload Shots . | . . . . . Overflow Damage . | . . . . . Projectiles . | . . . . . Explosions . | . . . . . Melee . | . . . . . Knockbacks . | . . . . . Impact . | . . . . . Kinetic . | . . . . . Secondary . | . . . . . Self-Inflicted Damage . | . . . . . Shots . | . . . . . Rammed . | . . . . . Targets Rammed . | . . . . . Kicked . | . . . . . Crushed . | . . . . . Highest Temperature 622 | . . . 405 622 Average Temperature 260 | . . . 197 324 Received Heat Transfer 108 | . . . . 108 Effects 11 | . . . 2 9 Shutdowns 4 | . . . 1 3 Energy Bleed 1 | . . . 1 . Matter Decay 2 | . . . . 2 Damage (minor) 1 | . . . . 1 Damage (major) 3 | . . . . 3 Siege Activations . | . . . . . Robots Corrupted . | . . . . . Combat Hostiles . | . . . . . Parts Fried . | . . . . . Impact Corruptions . | . . . . . Robots Melted 2 | . . . . 2 Combat Hostiles 2 | . . . . 2 Parts Melted 3 | . . . 1 2 Heat Transferred 1149 | . . . 333 816 Parts Sabotaged . | . . . . . Parts Stolen . | . . . . . Parts Stripped . | . . . . . Power Chain Reactions . | . . . . . Alert | -11 -10 -9 -9 -8 ------- Run | Yrd Mat Mat Min Mat Peak Influence 139 | . 4 16 96 139 Initial 37 | . . 1 6 37 Average 44 | . 2 3 83 67 Maximum Alert Level . | . . . . . Low Security (%) 100 | 100 100 100 100 100 Level 1 . | . . . . . Level 2 . | . . . . . Level 3 . | . . . . . Level 4 . | . . . . . Level 5 . | . . . . . High Security . | . . . . . Max Security . | . . . . . Squads Dispatched 3 | . . 1 . 2 Investigation . | . . . . . Extermination . | . . . . . Reinforcement 2 | . . 1 . 1 Assault . | . . . . . Garrison 1 | . . . . 1 Intercept . | . . . . . Searches Triggered . | . . . . . Construction Impeded . | . . . . . Haulers Reinforced . | . . . . . Active Scanning Responses . | . . . . . Cargo Convoy Interrupts . | . . . . . Stealth | -11 -10 -9 -9 -8 --------- Run | Yrd Mat Mat Min Mat Distress Signals 3 | . . . . 3 Communications Jammed . | . . . . . Distress Signals . | . . . . . Times Spotted 15 | . . 1 5 9 Peak Tracking Total 5 | . . 1 4 5 Tactical Retreats 3 | . . . 1 2 Traps | -11 -10 -9 -9 -8 ------- Run | Yrd Mat Mat Min Mat Traps Triggered 1 | . . . . 1 Indirectly . | . . . . . Trap Hack Attempts . | . . . . . Triggered . | . . . . . Disarmed . | . . . . . Reprogrammed . | . . . . . Reused . | . . . . . Traps Extracted . | . . . . . Installed . | . . . . . Triggered . | . . . . . Machines | -11 -10 -9 -9 -8 ---------- Run | Yrd Mat Mat Min Mat Machines Disabled . | . . . . . Max in Single Turn . | . . . . . Machines Repaired . | . . . . . Machines Dismantled . | . . . . . Machines Sabotaged . | . . . . . Overloaded Fab Kills . | . . . . . Hacking | -11 -10 -9 -9 -8 --------- Run | Yrd Mat Mat Min Mat Machines Accessed 4 | . 3 . 1 . Terminals 3 | . 3 . . . Fabricators . | . . . . . Repair Stations . | . . . . . Recycling Units . | . . . . . Scanalyzers . | . . . . . Garrison Access . | . . . . . Total Hacks 11 | . 10 . 1 . Successful 4 | . 3 . 1 . Failed 7 | . 7 . . . Catastrophic . | . . . . . Database Lockouts . | . . . . . Manual . | . . . . . Terminals 10 | . 10 . . . Fabricators . | . . . . . Repair Stations . | . . . . . Recycling Units . | . . . . . Scanalyzers . | . . . . . Garrison Access . | . . . . . Terminal Hacks 4 | . 3 . 1 . Open Door 1 | . . . 1 . Emergency Access Points 1 | . 1 . . . Terminal Index 1 | . 1 . . . Surveillance Status 1 | . 1 . . . Fabricator Hacks . | . . . . . Repair Station Hacks . | . . . . . Recycling Unit Hacks . | . . . . . Scanalyzer . | . . . . . Garrison Access Hacks . | . . . . . Unauthorized Hacks . | . . . . . Terminals . | . . . . . Fabricators . | . . . . . Repair Stations . | . . . . . Recycling Units . | . . . . . Scanalyzers . | . . . . . Garrison Access . | . . . . . Data Cores Recovered . | . . . . . Used . | . . . . . Hacking Detections 3 | . 3 . . . Full Trace Events . | . . . . . Feedback Events . | . . . . . Feedback Blocked . | . . . . . Robot Schematics Acquired . | . . . . . Robots Built . | . . . . . Authchips . | . . . . . Time . | . . . . . Total Robot Build Rating . | . . . . . Part Schematics Acquired . | . . . . . Parts Built . | . . . . . Authchips . | . . . . . Time . | . . . . . Total Part Build Rating . | . . . . . Parts Repaired . | . . . . . Time . | . . . . . Parts Recycled . | . . . . . Recycled Matter . | . . . . . Retrieved Matter . | . . . . . Retrieved Components . | . . . . . Parts Scanalyzed . | . . . . . Part Schematics Acquired . | . . . . . Parts Damaged . | . . . . . Bothacking | -11 -10 -9 -9 -8 ------------ Run | Yrd Mat Mat Min Mat Used RIF Installer . | . . . . . Robots Hacked . | . . . . . Non-combat . | . . . . . Combat . | . . . . . Robot Hacks Applied . | . . . . . Relay Couplers Released . | . . . . . Fabnet Peak Effective % . | . . . . . Robots Rewired . | . . . . . Allies Hacked . | . . . . . Hacks Repelled . | . . . . . Allies | -11 -10 -9 -9 -8 -------- Run | Yrd Mat Mat Min Mat Total Allies . | . . . . . Largest Group . | . . . . . Highest-Rated Group . | . . . . . Highest-Rated Ally . | . . . . . Total Orders . | . . . . . Ally Attacks . | . . . . . Total Damage . | . . . . . Kills . | . . . . . Allies Corrupted . | . . . . . Allies Melted . | . . . . . Intel | -11 -10 -9 -9 -8 ------- Run | Yrd Mat Mat Min Mat Robot Analysis Total . | . . . . . Derelict Logs Recovered . | . . . . . Drone Launches . | . . . . . Drone Recoveries . | . . . . . Exploration | -11 -10 -9 -9 -8 ------------- Run | Yrd Mat Mat Min Mat Turns Passed 735 | 83 195 48 253 156 Spaces Moved 662 | 79 204 55 222 102 Core 27 | 27 . . . . Treads . | . . . . . Legs . | . . . . . Wheels 635 | 52 204 55 222 102 Hover . | . . . . . Flight . | . . . . . Fastest Speed 50 | 50 80 80 80 80 Average Speed 87 | 83 80 80 93 94 Slowest Speed 100 | 100 80 80 95 95 Overloaded Moves . | . . . . . Propulsion Burnouts . | . . . . . Robots Hopped . | . . . . . Cave-ins Triggered . | . . . . . Exploration Rate (%) 22 | 4 32 7 54 14 Regions Visited 4 Branch Regions 1 Pre-discovered Areas . | . . . . . Known Exits Taken . | . . . . . Unknown Exits Taken 4 | 1 1 1 1 . Scrap Searched 1 | . . . 1 . Spaces Dug . | . . . . . Terrain Destroyed . | . . . . . Melee . | . . . . . Projectile . | . . . . . AOE . | . . . . . Terrain Rammed . | . . . . . Walls Destroyed . | . . . . . Machines Disabled . | . . . . . Actions | -11 -10 -9 -9 -8 --------- Run | Yrd Mat Mat Min Mat Total 783 | 96 236 59 250 142 Wait 65 | 2 25 . 13 25 Move 658 | 78 203 54 221 102 Hop . | . . . . . Pick Up 23 | 10 6 2 3 2 Fast Attach . | . . . . . Attach 12 | 6 1 2 1 2 Detach . | . . . . . Swap . | . . . . . Drop 6 | . 1 1 3 1 Fire 19 | . . . 9 10 Melee . | . . . . . Ram . | . . . . . Kick . | . . . . . Crush . | . . . . . Escape Stasis . | . . . . . Rewire . | . . . . . Trap . | . . . . . Miscellaneous . | . . . . . Route ------- -11/Scrapyard -10/Materials -9/Materials -9/Mines (discovered 2 exits: [*Mat x2]) -8/Materials History --------- Turn | Location | Event 8 | -11/Scrapyard | Discovered new exit (range 16) 84 | -11/Scrapyard | Entered Materials 207 | -10/Materials | Discovered new exit (range 11) 279 | -10/Materials | Entered another Materials area 279 | -9/Materials | Evolved 2 slots: Power x1, Utility x1 281 | -9/Materials | Discovered new exit (range 14) 300 | -9/Materials | Build established: Mutant 327 | -9/Materials | Entered Mines 334 | -9/Mines | Discovered new exit (range 8) 527 | -9/Mines | Discovered new exit (range 9) 552 | -9/Mines | Found the Drone Emporium 563 | -9/Mines | Found Prototype Device 580 | -9/Mines | Entered Materials 580 | -8/Materials | Evolved 2 slots: Utility x1, Weapon x1 708 | -8/Materials | Garrison activated, responded to threat 736 | -8/Materials | Self-destructed Last Messages --------------- 00708_ Melted Aluminum Leg. 00708_ Melted Particle Gun. 00709_ G-47 Trooper overheating. 00710_ G-47 Trooper heat damages core (-7). [Achievement: It's Just You] 00712_ Power failure, Lgt. Ion Engine shutdown. 00714_ G-47 Trooper suffers critical hit (Burn). 00716_ Overheating: Matter decay (-69). 00717_ Ion Engine destroyed. 00718_ G-47 Trooper critical meltdown. 00719_ Overheating: ECM Suite damaged (-1). 00719_ Overheating: Lgt. Ion Engine damaged (-17). 00719_ Overheating: Wheel damaged (-12). 00720_ Overheating: Matter decay (-42). 00720_ U-05 Engineer builds a Door. 00721_ Overheating: Sml. Laser damaged (-13). 00721_ Acquired 57 matter. 00722_ Power failure, Lgt. Ion Engine shutdown. 00732_ W-25 Informer sends out distress signal. 00736_ Power failure, Lgt. Ion Engine shutdown. Map ----- +----------------------------------------------------+ | ???????????????????????????????????????? | | ???????????????????????????????????????? | | ???????????????????????????????????????? | | ???????????????????????????????????????? | | ???????????????????????????????????????? | | ???????????????????????????????????????? | | ???????????????????????????????????????? | | ???????????????????????????????????????? | | ???????????????????????????????????????? | | ???????????????????????????????????????? | | ???????????????????????????????????????? | | ???????????????????????????????????????? | | ???????????????????????????????????????? | | ???????????????????????????????????????? | | ??????????? ?? ??????? ????????????????? | | ?????????????????? ????????????????????? | | ?????????????##????????????????????????? | | ???????????? ??????????????????????????? | | ???????????????????????????????????????? | | ?????????????########???#??#???????????? | | ?????????????# #??????#???????????? | | ?????????#???# """#???????? ??????#??? | | ?????????#? ?# """#??????????? ?###### | | ?????????# ??# """#?????????????# | | ??????#??# ?# #???????#?????# | | ?????????# # @ #??????????#??# | | ?????????# ###g################## | | ?????????# % | | ?????????# w ################ # | | ?????????# % #????#????#????# # | | ????????## ###??????????????# # | | ?????????# """ #??#????????#????# # | | ?????????# """ #????????????????# # | | ?????????# """ #?? ????????"????# # | | ?????????# #????????????????# # | | ????????"" #?? ???????????# # | | ???????"G #?? ??? ???????# | | ???????""" #?? #????"??????# | | ????????## !! #?? #?????????#?# " | | ?????????# !! #?? #???????????# | | ?????????# !] ### ????????????# | | ?????????# ###????????## | | ?????????# # ????????# | | ?????????# # """ ????# | | ?????????# ! ## """ ????# | | ?????????+ #? """?????# | | ?????????# #? """??"??# | | ?????????# /== #?? ""????"?# | | ?????????# /== #?? ??????# | | ?????????# != ####+######## | +----------------------------------------------------+ Best States ------------- Heat Dissipation 31 Energy Generation 15 Energy Capacity 275 Matter Stores 300 Matter Capacity 300 Sight Range 16 Terrain Scan Range 14 Terrain Scan Density 10 ECM Strength 1 Propulsion Shielding 33 Evasion (%) 44 Item Schematics ----------------- None Robot Schematics ------------------ None Fabricated ------------ Nothing Alien Tech Used ----------------- None Achievements -------------- It's Just You Challenges ------------ None Game ------ Seed HardcellTractorFragment Manual? 0 Play Time 00:10:56 Cumulative 4.8 hours Start 2024.04.14 @ 05:45:50 End 2024.04.14 @ 06:10:42 Sessions 1 Manual Loads 0 Difficulty Rogue Special Mode None Game No. 18 Rogue 18 Adventurer 0 Explorer 0 Win Type - Total 0 Types 0/0/0/0/0/0/0/0/0 Lore% 7 Gallery% 10 Achievement% 8 Wizard Run 0 Options --------- Layout 0 ASCII 0 Keyboard 1 Movement Numpad Keybinds 0 Fullscreen 1 Font 12/Smallcaps Map View 83x54 Zoom Use 0% Tactical HUD 1 Map Filters NONE Filters NONE Steam 0 RUN: 036596c2-9de2-4ab7-9124-d61a31063f71